[Event "Titled Tuesday Blitz August 24 2021"]
[White "Moon_stone123"]
[Black "Maly, Alexey"]
[BlackFideId "14103184"]
[WhiteElo "2432"]
[BlackElo "2250"]
[Result "1-0"]
[Round "11"]
[TimeControl "180+1"]
[Date "2021.08.24"]
[WhiteClock "0:00:52"]
[BlackClock "0:00:58"]

1. e4 {[%clk 0:03:00]}  c6 {[%clk 0:02:59]} 2. Nc3 {[%clk 0:03:00]}  d5 {[%clk 0:03:00]} 3. Qe2 {[%clk 0:03:00]}  dxe4 {[%clk 0:02:59]} 4. Nxe4 {[%clk 0:03:01]}  Bf5 {[%clk 0:02:53]} 5. Nf3 {[%clk 0:03:00]}  e6 {[%clk 0:02:52]} 6. d4 {[%clk 0:02:59]}  Nd7 {[%clk 0:02:52]} 7. c3 {[%clk 0:02:59]}  Be7 {[%clk 0:02:51]} 8. g3 {[%clk 0:02:59]}  Ngf6 {[%clk 0:02:51]} 9. Nxf6+ {[%clk 0:02:58]}  Nxf6 {[%clk 0:02:50]} 10. Bg2 {[%clk 0:02:58]}  O-O {[%clk 0:02:50]} 11. O-O {[%clk 0:02:58]}  h6 {[%clk 0:02:50]} 12. Re1 {[%clk 0:02:58]}  Nd5 {[%clk 0:02:49]} 13. Ne5 {[%clk 0:02:57]}  Qc7 {[%clk 0:02:47]} 14. a3 {[%clk 0:02:54]}  b5 {[%clk 0:02:46]} 15. Bd2 {[%clk 0:02:48]}  a5 {[%clk 0:02:45]} 16. Rac1 {[%clk 0:02:46]}  a4 {[%clk 0:02:45]} 17. c4 {[%clk 0:02:46]}  bxc4 {[%clk 0:02:45]} 18. Qxc4 {[%clk 0:02:46]}  Rfc8 {[%clk 0:02:36]} 19. Nxc6 {[%clk 0:02:41]}  Bf6 {[%clk 0:02:35]} 20. Bxd5 {[%clk 0:02:33]}  exd5 {[%clk 0:02:35]} 21. Qxd5 {[%clk 0:02:34]}  Be6 {[%clk 0:02:26]} 22. Rxe6 {[%clk 0:02:33]}  fxe6 {[%clk 0:02:26]} 23. Qxe6+ {[%clk 0:02:34]}  Kh8 {[%clk 0:02:25]} 24. Ne5 {[%clk 0:02:32]}  Qb7 {[%clk 0:02:18]} 25. Rxc8+ {[%clk 0:02:15]}  Rxc8 {[%clk 0:02:18]} 26. Nf7+ {[%clk 0:02:00]}  Kh7 {[%clk 0:02:17]} 27. Nd6 {[%clk 0:01:51]}  Qxb2 {[%clk 0:02:05]} 28. Qf5+ {[%clk 0:01:46]}  g6 {[%clk 0:01:45]} 29. Qxf6 {[%clk 0:01:43]}  Qxd2 {[%clk 0:01:16]} 30. Qe7+ {[%clk 0:01:20]}  Kh8 {[%clk 0:01:12]} 31. Nxc8 {[%clk 0:01:19]}  Qc1+ {[%clk 0:01:11]} 32. Kg2 {[%clk 0:01:19]}  Qxc8 {[%clk 0:01:10]} 33. d5 {[%clk 0:01:19]}  Qc4 {[%clk 0:01:06]} 34. Qe5+ {[%clk 0:01:15]}  Kh7 {[%clk 0:01:05]} 35. d6 {[%clk 0:01:15]}  Qc6+ {[%clk 0:01:05]} 36. f3 {[%clk 0:00:59]}  Qc2+ {[%clk 0:01:04]} 37. Kh3 {[%clk 0:00:59]}  Qc8+ {[%clk 0:01:04]} 38. g4 {[%clk 0:00:59]}  Qc6 {[%clk 0:01:00]} 39. Qe7+ {[%clk 0:00:51]}  Kg8 {[%clk 0:00:59]} 40. Qd8+ {[%clk 0:00:52]}  Kf7 {[%clk 0:00:58]} 41. Qc7+ {[%clk 0:00:52]} 1-0


[Site "https://www.chess.com"]

[Event "Titled Tuesday Blitz August 24 2021"]
[White "Nazaretyan, Tigran"]
[Black "Silva, Miguel Antonio Neto"]
[WhiteFideId "24162345"]
[BlackFideId "1911929"]
[WhiteElo "2167"]
[BlackElo "2283"]
[Result "0-1"]
[Round "11"]
[TimeControl "180+1"]
[Date "2021.08.24"]
[WhiteClock "0:00:23"]
[BlackClock "0:00:37"]

1. d4 {[%clk 0:03:00]}  Nf6 {[%clk 0:02:59]} 2. c4 {[%clk 0:03:00]}  e6 {[%clk 0:02:59]} 3. Nf3 {[%clk 0:03:00]}  d5 {[%clk 0:02:58]} 4. Nc3 {[%clk 0:03:00]}  Bb4 {[%clk 0:02:56]} 5. Qa4+ {[%clk 0:02:59]}  Nc6 {[%clk 0:02:55]} 6. e3 {[%clk 0:02:58]}  Bd7 {[%clk 0:02:53]} 7. Qc2 {[%clk 0:02:56]}  O-O {[%clk 0:02:49]} 8. Bd2 {[%clk 0:02:55]}  Ne7 {[%clk 0:02:46]} 9. Bd3 {[%clk 0:02:48]}  dxc4 {[%clk 0:02:43]} 10. Bxc4 {[%clk 0:02:48]}  c5 {[%clk 0:02:42]} 11. a3 {[%clk 0:02:41]}  Bxc3 {[%clk 0:02:40]} 12. Bxc3 {[%clk 0:02:41]}  cxd4 {[%clk 0:02:38]} 13. Bxd4 {[%clk 0:02:40]}  Rc8 {[%clk 0:02:33]} 14. Bxf6 {[%clk 0:02:30]}  gxf6 {[%clk 0:02:31]} 15. Qe2 {[%clk 0:02:27]}  Qa5+ {[%clk 0:02:30]} 16. b4 {[%clk 0:02:25]}  Qc7 {[%clk 0:02:28]} 17. Nd2 {[%clk 0:02:19]}  Rfd8 {[%clk 0:02:24]} 18. O-O {[%clk 0:02:15]}  Be8 {[%clk 0:02:19]} 19. Rac1 {[%clk 0:02:02]}  b5 {[%clk 0:02:14]} 20. Qg4+ {[%clk 0:01:39]}  Ng6 {[%clk 0:02:10]} 21. Ne4 {[%clk 0:01:14]}  bxc4 {[%clk 0:01:57]} 22. Nxf6+ {[%clk 0:01:14]}  Kg7 {[%clk 0:01:56]} 23. Nh5+ {[%clk 0:01:14]}  Kh8 {[%clk 0:01:53]} 24. f4 {[%clk 0:01:10]}  f5 {[%clk 0:01:37]} 25. Qg5 {[%clk 0:01:06]}  Qe7 {[%clk 0:01:37]} 26. Qh6 {[%clk 0:01:06]}  c3 {[%clk 0:01:19]} 27. e4 {[%clk 0:01:05]}  Bb5 {[%clk 0:01:11]} 28. Rfe1 {[%clk 0:01:04]}  c2 {[%clk 0:01:03]} 29. exf5 {[%clk 0:01:03]}  Qf8 {[%clk 0:00:58]} 30. Qxf8+ {[%clk 0:00:53]}  Nxf8 {[%clk 0:00:58]} 31. fxe6 {[%clk 0:00:53]}  Nxe6 {[%clk 0:00:58]} 32. f5 {[%clk 0:00:20]}  Nd4 {[%clk 0:00:54]} 33. f6 {[%clk 0:00:20]}  Ne2+ {[%clk 0:00:43]} 34. Kf2 {[%clk 0:00:16]}  Nxc1 {[%clk 0:00:43]} 35. Rxc1 {[%clk 0:00:14]}  Rd1 {[%clk 0:00:42]} 36. Rxc2 {[%clk 0:00:13]}  Rxc2+ {[%clk 0:00:42]} 37. Ke3 {[%clk 0:00:14]}  Re2+ {[%clk 0:00:40]} 38. Kf4 {[%clk 0:00:14]}  Rf1+ {[%clk 0:00:40]} 39. Kg5 {[%clk 0:00:15]}  Re5+ {[%clk 0:00:40]} 40. Kh6 {[%clk 0:00:15]}  Rxh5+ {[%clk 0:00:39]} 41. Kxh5 {[%clk 0:00:15]}  Rxf6 {[%clk 0:00:38]} 42. g4 {[%clk 0:00:16]}  Be2 {[%clk 0:00:37]} 43. h4 {[%clk 0:00:17]}  Bxg4+ {[%clk 0:00:37]} 44. Kxg4 {[%clk 0:00:17]}  Ra6 {[%clk 0:00:37]} 45. b5 {[%clk 0:00:17]}  Rxa3 {[%clk 0:00:37]} 46. b6 {[%clk 0:00:18]}  axb6 {[%clk 0:00:37]} 47. Kf5 {[%clk 0:00:18]}  Rc3 {[%clk 0:00:37]} 48. Ke6 {[%clk 0:00:19]}  Kg7 {[%clk 0:00:36]} 49. Kd5 {[%clk 0:00:20]}  Kg6 {[%clk 0:00:36]} 50. Kd4 {[%clk 0:00:21]}  Rc5 {[%clk 0:00:35]} 51. h5+ {[%clk 0:00:21]}  Kxh5 {[%clk 0:00:36]} 52. Ke4 {[%clk 0:00:22]}  Kg5 {[%clk 0:00:36]} 53. Kd4 {[%clk 0:00:22]}  h5 {[%clk 0:00:36]} 54. Ke3 {[%clk 0:00:23]}  Rc4 {[%clk 0:00:36]} 55. Kd3 {[%clk 0:00:24]}  b5 {[%clk 0:00:36]} 56. Ke3 {[%clk 0:00:23]}  Kf5 {[%clk 0:00:36]} 57. Kf3 {[%clk 0:00:24]}  h4 {[%clk 0:00:36]} 58. Kg2 {[%clk 0:00:24]}  Rc3 {[%clk 0:00:36]} 59. Kh2 {[%clk 0:00:23]}  b4 {[%clk 0:00:37]} 60. Kg1 {[%clk 0:00:23]}  Rc2 {[%clk 0:00:36]} 61. Kf1 {[%clk 0:00:23]}  b3 {[%clk 0:00:36]} 62. Kg1 {[%clk 0:00:23]}  b2 {[%clk 0:00:37]} 0-1


[Site "https://www.chess.com"]

[Event "Titled Tuesday Blitz August 24 2021"]
[White "Nguyen, Thien Ngan"]
[Black "Petesch, Gabriel"]
[WhiteFideId "12414816"]
[BlackFideId "2032465"]
[WhiteElo "1917"]
[BlackElo "2374"]
[Result "1/2-1/2"]
[Round "11"]
[TimeControl "180+1"]
[Date "2021.08.24"]
[WhiteClock "0:00:16"]
[BlackClock "0:00:05"]

1. e4 {[%clk 0:03:00]}  d5 {[%clk 0:02:54]} 2. exd5 {[%clk 0:03:00]}  Qxd5 {[%clk 0:02:52]} 3. Nc3 {[%clk 0:03:00]}  Qd8 {[%clk 0:02:52]} 4. Nf3 {[%clk 0:03:00]}  Nf6 {[%clk 0:02:46]} 5. d4 {[%clk 0:03:00]}  c6 {[%clk 0:02:45]} 6. Bf4 {[%clk 0:02:59]}  Bf5 {[%clk 0:02:37]} 7. Bc4 {[%clk 0:02:56]}  e6 {[%clk 0:02:37]} 8. Ne5 {[%clk 0:02:55]}  Bb4 {[%clk 0:02:27]} 9. O-O {[%clk 0:02:54]}  O-O {[%clk 0:02:24]} 10. a4 {[%clk 0:02:51]}  Nbd7 {[%clk 0:02:09]} 11. Bb3 {[%clk 0:02:46]}  Nxe5 {[%clk 0:02:01]} 12. Bxe5 {[%clk 0:02:46]}  Nd7 {[%clk 0:01:55]} 13. Bg3 {[%clk 0:02:45]}  Qa5 {[%clk 0:01:41]} 14. Ne2 {[%clk 0:02:43]}  Rfd8 {[%clk 0:01:41]} 15. c3 {[%clk 0:02:43]}  Bf8 {[%clk 0:01:40]} 16. Bh4 {[%clk 0:02:36]}  Re8 {[%clk 0:01:37]} 17. Ng3 {[%clk 0:02:35]}  Bg6 {[%clk 0:01:35]} 18. Qd2 {[%clk 0:02:28]}  Qb6 {[%clk 0:01:31]} 19. Bc4 {[%clk 0:02:25]}  Be7 {[%clk 0:01:29]} 20. Bxe7 {[%clk 0:02:18]}  Rxe7 {[%clk 0:01:30]} 21. Rfe1 {[%clk 0:02:18]}  Ree8 {[%clk 0:01:29]} 22. a5 {[%clk 0:02:17]}  Qc7 {[%clk 0:01:21]} 23. a6 {[%clk 0:02:14]}  b6 {[%clk 0:01:21]} 24. Be2 {[%clk 0:02:14]}  Rad8 {[%clk 0:01:22]} 25. Bf3 {[%clk 0:02:02]}  Nc5 {[%clk 0:01:17]} 26. Qe3 {[%clk 0:01:47]}  Nd3 {[%clk 0:00:55]} 27. Re2 {[%clk 0:01:39]}  c5 {[%clk 0:00:51]} 28. Rd2 {[%clk 0:01:20]}  cxd4 {[%clk 0:00:45]} 29. cxd4 {[%clk 0:01:19]}  Nb4 {[%clk 0:00:26]} 30. Qb3 {[%clk 0:01:10]}  Nd5 {[%clk 0:00:16]} 31. Ne2 {[%clk 0:01:00]}  Nf4 {[%clk 0:00:15]} 32. Nc3 {[%clk 0:00:57]}  e5 {[%clk 0:00:13]} 33. d5 {[%clk 0:00:56]}  e4 {[%clk 0:00:13]} 34. Bg4 {[%clk 0:00:48]}  e3 {[%clk 0:00:12]} 35. fxe3 {[%clk 0:00:48]}  Rxe3 {[%clk 0:00:10]} 36. Bf3 {[%clk 0:00:47]}  Qc5 {[%clk 0:00:10]} 37. Kh1 {[%clk 0:00:47]}  Rde8 {[%clk 0:00:10]} 38. Rdd1 {[%clk 0:00:34]}  Nd3 {[%clk 0:00:10]} 39. Rf1 {[%clk 0:00:33]}  Re1 {[%clk 0:00:09]} 40. h3 {[%clk 0:00:21]}  Rxa1 {[%clk 0:00:08]} 41. Rxa1 {[%clk 0:00:21]}  Ne1 {[%clk 0:00:08]} 42. Ne4 {[%clk 0:00:20]}  Bxe4 {[%clk 0:00:03]} 43. Rxe1 {[%clk 0:00:20]}  f5 {[%clk 0:00:03]} 44. Bxe4 {[%clk 0:00:20]}  fxe4 {[%clk 0:00:04]} 45. d6+ {[%clk 0:00:20]}  Kh8 {[%clk 0:00:04]} 46. d7 {[%clk 0:00:20]}  Rd8 {[%clk 0:00:04]} 47. Rxe4 {[%clk 0:00:20]}  Qc1+ {[%clk 0:00:04]} 48. Kh2 {[%clk 0:00:20]}  Qc7+ {[%clk 0:00:05]} 49. g3 {[%clk 0:00:20]}  Qxd7 {[%clk 0:00:05]} 50. Qe3 {[%clk 0:00:20]}  h6 {[%clk 0:00:05]} 51. h4 {[%clk 0:00:19]}  Qd2+ {[%clk 0:00:06]} 52. Kh3 {[%clk 0:00:19]}  Qd7+ {[%clk 0:00:05]} 53. Kh2 {[%clk 0:00:17]}  Qd1 {[%clk 0:00:06]} 54. Kh3 {[%clk 0:00:18]}  Qh1+ {[%clk 0:00:05]} 55. Kg4 {[%clk 0:00:18]}  Qd1+ {[%clk 0:00:05]} 56. Qe2 {[%clk 0:00:18]}  Qd7+ {[%clk 0:00:06]} 57. Kf3 {[%clk 0:00:17]}  Qh3 {[%clk 0:00:05]} 58. Re8+ {[%clk 0:00:16]}  Rxe8 {[%clk 0:00:05]} 59. Qxe8+ {[%clk 0:00:17]}  Kh7 {[%clk 0:00:06]} 60. Qe4+ {[%clk 0:00:17]}  Kg8 {[%clk 0:00:06]} 61. Qa8+ {[%clk 0:00:16]}  Kh7 {[%clk 0:00:06]} 62. Qe4+ {[%clk 0:00:16]}  Kg8 {[%clk 0:00:05]} 63. Qe8+ {[%clk 0:00:16]}  Kh7 {[%clk 0:00:05]} 64. Qe4+ {[%clk 0:00:16]} 1/2-1/2


[Site "https://www.chess.com"]

[Event "Titled Tuesday Blitz August 24 2021"]
[White "Novikova, Galina"]
[Black "Chen, Max"]
[WhiteFideId "4157095"]
[BlackFideId "2622440"]
[WhiteElo "1907"]
[BlackElo "2452"]
[Result "0-1"]
[Round "11"]
[TimeControl "180+1"]
[Date "2021.08.24"]
[WhiteClock "0:00:01"]
[BlackClock "0:00:44"]

1. e4 {[%clk 0:03:00]}  c5 {[%clk 0:02:57]} 2. Nf3 {[%clk 0:03:00]}  d6 {[%clk 0:02:56]} 3. d4 {[%clk 0:03:00]}  cxd4 {[%clk 0:02:57]} 4. Nxd4 {[%clk 0:03:00]}  Nf6 {[%clk 0:02:58]} 5. Nc3 {[%clk 0:03:01]}  a6 {[%clk 0:02:57]} 6. h3 {[%clk 0:03:01]}  e5 {[%clk 0:02:52]} 7. Nde2 {[%clk 0:03:01]}  h5 {[%clk 0:02:52]} 8. g3 {[%clk 0:03:01]}  Be6 {[%clk 0:02:50]} 9. Bg2 {[%clk 0:03:01]}  Be7 {[%clk 0:02:50]} 10. Be3 {[%clk 0:02:54]}  b5 {[%clk 0:02:49]} 11. Nd5 {[%clk 0:02:52]}  Nxd5 {[%clk 0:02:43]} 12. exd5 {[%clk 0:02:52]}  Bf5 {[%clk 0:02:42]} 13. a4 {[%clk 0:02:35]}  b4 {[%clk 0:02:38]} 14. O-O {[%clk 0:02:14]}  Nd7 {[%clk 0:02:34]} 15. f4 {[%clk 0:02:03]}  exf4 {[%clk 0:02:29]} 16. Bxf4 {[%clk 0:01:40]}  Bg6 {[%clk 0:02:20]} 17. Nd4 {[%clk 0:01:38]}  O-O {[%clk 0:02:09]} 18. Nc6 {[%clk 0:01:38]}  Qb6+ {[%clk 0:02:06]} 19. Kh1 {[%clk 0:01:36]}  Rfe8 {[%clk 0:02:03]} 20. a5 {[%clk 0:01:30]}  Qc5 {[%clk 0:01:56]} 21. Qd2 {[%clk 0:00:30]}  Bf6 {[%clk 0:01:51]} 22. Qxb4 {[%clk 0:00:25]}  Qxb4 {[%clk 0:01:44]} 23. Nxb4 {[%clk 0:00:26]}  Bxb2 {[%clk 0:01:44]} 24. Rab1 {[%clk 0:00:23]}  Be5 {[%clk 0:01:44]} 25. Rbc1 {[%clk 0:00:13]}  Bxf4 {[%clk 0:01:11]} 26. gxf4 {[%clk 0:00:14]}  Bf5 {[%clk 0:01:08]} 27. Nc6 {[%clk 0:00:13]}  Re2 {[%clk 0:01:04]} 28. c4 {[%clk 0:00:13]}  Nc5 {[%clk 0:00:58]} 29. Rfe1 {[%clk 0:00:12]}  Rae8 {[%clk 0:00:56]} 30. Rxe2 {[%clk 0:00:09]}  Rxe2 {[%clk 0:00:56]} 31. Bf3 {[%clk 0:00:09]}  Re3 {[%clk 0:00:56]} 32. Kg2 {[%clk 0:00:05]}  Nd3 {[%clk 0:00:54]} 33. Rc3 {[%clk 0:00:02]}  Ne1+ {[%clk 0:00:45]} 34. Kf2 {[%clk 0:00:02]}  Rxc3 {[%clk 0:00:46]} 35. Ne7+ {[%clk 0:00:01]}  Kf8 {[%clk 0:00:44]} 0-1


[Site "https://www.chess.com"]

[Event "Titled Tuesday Blitz August 24 2021"]
[White "Pacheco Lugo, Alejandro Jose"]
[Black "Martin, Lewis"]
[WhiteFideId "3903745"]
[BlackFideId "410551"]
[WhiteElo "2125"]
[BlackElo "2145"]
[Result "0-1"]
[Round "11"]
[TimeControl "180+1"]
[Date "2021.08.24"]
[WhiteClock "0:00:08"]
[BlackClock "0:00:08"]

1. e4 {[%clk 0:03:00]}  c5 {[%clk 0:02:59]} 2. Nf3 {[%clk 0:03:01]}  d6 {[%clk 0:02:59]} 3. d4 {[%clk 0:03:01]}  cxd4 {[%clk 0:03:00]} 4. Nxd4 {[%clk 0:03:01]}  Nf6 {[%clk 0:03:01]} 5. Be3 {[%clk 0:03:01]}  e5 {[%clk 0:02:56]} 6. Bb5+ {[%clk 0:02:57]}  Bd7 {[%clk 0:02:53]} 7. Bxd7+ {[%clk 0:02:56]}  Qxd7 {[%clk 0:02:53]} 8. Nb3 {[%clk 0:02:36]}  Nxe4 {[%clk 0:02:49]} 9. O-O {[%clk 0:02:34]}  Nc6 {[%clk 0:02:45]} 10. Re1 {[%clk 0:02:35]}  Nf6 {[%clk 0:02:44]} 11. c4 {[%clk 0:02:34]}  Be7 {[%clk 0:02:43]} 12. Nc3 {[%clk 0:02:34]}  O-O {[%clk 0:02:41]} 13. Bg5 {[%clk 0:02:34]}  h6 {[%clk 0:02:38]} 14. Bxf6 {[%clk 0:02:34]}  Bxf6 {[%clk 0:02:37]} 15. Nd5 {[%clk 0:02:35]}  Bd8 {[%clk 0:02:37]} 16. Re3 {[%clk 0:02:34]}  f5 {[%clk 0:02:23]} 17. f4 {[%clk 0:02:30]}  exf4 {[%clk 0:02:14]} 18. Nxf4 {[%clk 0:02:24]}  Bg5 {[%clk 0:02:13]} 19. Rf3 {[%clk 0:02:16]}  Ne5 {[%clk 0:02:11]} 20. Rf1 {[%clk 0:02:14]}  Nxc4 {[%clk 0:02:04]} 21. Ng6 {[%clk 0:02:00]}  Rf7 {[%clk 0:02:00]} 22. Qd3 {[%clk 0:01:39]}  Ne3 {[%clk 0:01:40]} 23. Rf3 {[%clk 0:01:36]}  Re8 {[%clk 0:01:37]} 24. h4 {[%clk 0:01:35]}  Ng4 {[%clk 0:01:10]} 25. hxg5 {[%clk 0:01:33]}  hxg5 {[%clk 0:01:10]} 26. Raf1 {[%clk 0:01:14]}  f4 {[%clk 0:00:54]} 27. Nd4 {[%clk 0:01:06]}  Rf6 {[%clk 0:00:46]} 28. Qb3+ {[%clk 0:01:02]}  Qf7 {[%clk 0:00:43]} 29. Nh4 {[%clk 0:00:49]}  gxh4 {[%clk 0:00:37]} 30. Qxf7+ {[%clk 0:00:48]}  Kxf7 {[%clk 0:00:28]} 31. Rxf4 {[%clk 0:00:49]}  Ne3 {[%clk 0:00:26]} 32. R1f3 {[%clk 0:00:44]}  Nd5 {[%clk 0:00:17]} 33. Rxh4 {[%clk 0:00:42]}  Rxf3 {[%clk 0:00:16]} 34. Nxf3 {[%clk 0:00:43]}  Re2 {[%clk 0:00:15]} 35. Rd4 {[%clk 0:00:42]}  Ne3 {[%clk 0:00:14]} 36. Re4 {[%clk 0:00:37]}  Rxg2+ {[%clk 0:00:12]} 37. Kh1 {[%clk 0:00:37]}  Re2 {[%clk 0:00:12]} 38. Ng1 {[%clk 0:00:32]}  Re1 {[%clk 0:00:11]} 39. Kh2 {[%clk 0:00:32]}  d5 {[%clk 0:00:12]} 40. Rf4+ {[%clk 0:00:22]}  Ke6 {[%clk 0:00:11]} 41. Rb4 {[%clk 0:00:18]}  b6 {[%clk 0:00:10]} 42. Nf3 {[%clk 0:00:18]}  Re2+ {[%clk 0:00:10]} 43. Kg3 {[%clk 0:00:19]}  Nf5+ {[%clk 0:00:08]} 44. Kf4 {[%clk 0:00:19]}  Re4+ {[%clk 0:00:08]} 45. Rxe4+ {[%clk 0:00:19]}  dxe4 {[%clk 0:00:09]} 46. Kxe4 {[%clk 0:00:20]}  Nd6+ {[%clk 0:00:09]} 47. Kf4 {[%clk 0:00:20]}  Kd5 {[%clk 0:00:09]} 48. b3 {[%clk 0:00:20]}  Kc5 {[%clk 0:00:09]} 49. a3 {[%clk 0:00:19]}  Nb5 {[%clk 0:00:09]} 50. a4 {[%clk 0:00:18]}  Nd4 {[%clk 0:00:09]} 51. Nd2 {[%clk 0:00:18]}  Kb4 {[%clk 0:00:09]} 52. a5 {[%clk 0:00:14]}  bxa5 {[%clk 0:00:08]} 53. Ke4 {[%clk 0:00:08]}  Nxb3 {[%clk 0:00:08]} 54. Nf1 {[%clk 0:00:06]}  a4 {[%clk 0:00:08]} 55. Ne3 {[%clk 0:00:06]}  a3 {[%clk 0:00:08]} 56. Nd5+ {[%clk 0:00:07]}  Kc4 {[%clk 0:00:08]} 57. Ne3+ {[%clk 0:00:07]}  Kc3 {[%clk 0:00:08]} 58. Nd5+ {[%clk 0:00:08]}  Kb2 {[%clk 0:00:08]} 59. Nb4 {[%clk 0:00:08]}  a2 {[%clk 0:00:08]} 0-1


[Site "https://www.chess.com"]

[Event "Titled Tuesday Blitz August 24 2021"]
[White "Palchuk, Andrii"]
[Black "Jeet, Jain"]
[WhiteFideId "14176688"]
[BlackFideId "5073022"]
[WhiteElo "2320"]
[BlackElo "2085"]
[Result "1-0"]
[Round "11"]
[TimeControl "180+1"]
[Date "2021.08.24"]
[WhiteClock "0:00:30"]
[BlackClock "0:00:39"]

1. e4 {[%clk 0:03:00]}  e5 {[%clk 0:02:59]} 2. Nf3 {[%clk 0:03:00]}  Nc6 {[%clk 0:02:57]} 3. d4 {[%clk 0:03:01]}  exd4 {[%clk 0:02:57]} 4. Bc4 {[%clk 0:03:00]}  Nf6 {[%clk 0:02:57]} 5. e5 {[%clk 0:02:59]}  d5 {[%clk 0:02:57]} 6. Bb5 {[%clk 0:02:58]}  Ne4 {[%clk 0:02:58]} 7. Nxd4 {[%clk 0:02:55]}  Bc5 {[%clk 0:02:58]} 8. O-O {[%clk 0:02:54]}  O-O {[%clk 0:02:55]} 9. Bxc6 {[%clk 0:02:51]}  bxc6 {[%clk 0:02:54]} 10. Be3 {[%clk 0:02:49]}  Ba6 {[%clk 0:02:43]} 11. Re1 {[%clk 0:02:47]}  Bxd4 {[%clk 0:02:35]} 12. Qxd4 {[%clk 0:02:35]}  c5 {[%clk 0:02:35]} 13. Qa4 {[%clk 0:02:35]}  Bb7 {[%clk 0:02:22]} 14. Qb5 {[%clk 0:02:17]}  Rb8 {[%clk 0:02:20]} 15. Bxc5 {[%clk 0:02:17]}  Ba8 {[%clk 0:02:05]} 16. Qa5 {[%clk 0:02:13]}  Nxc5 {[%clk 0:02:00]} 17. Qxc5 {[%clk 0:02:14]}  Rxb2 {[%clk 0:02:01]} 18. Nd2 {[%clk 0:02:07]}  d4 {[%clk 0:01:58]} 19. Nb3 {[%clk 0:02:01]}  Qg5 {[%clk 0:01:53]} 20. g3 {[%clk 0:01:46]}  Qg4 {[%clk 0:01:42]} 21. Nxd4 {[%clk 0:01:37]}  Rb6 {[%clk 0:01:26]} 22. f3 {[%clk 0:01:04]}  Bxf3 {[%clk 0:01:18]} 23. Nxf3 {[%clk 0:01:04]}  Qxf3 {[%clk 0:01:19]} 24. Qxc7 {[%clk 0:01:01]}  Rc6 {[%clk 0:01:16]} 25. Qb7 {[%clk 0:00:52]}  h5 {[%clk 0:01:16]} 26. Rad1 {[%clk 0:00:40]}  h4 {[%clk 0:01:10]} 27. Rd3 {[%clk 0:00:38]}  Qg4 {[%clk 0:00:41]} 28. Qxc6 {[%clk 0:00:36]}  hxg3 {[%clk 0:00:41]} 29. Rxg3 {[%clk 0:00:32]}  Qd4+ {[%clk 0:00:41]} 30. Kh1 {[%clk 0:00:32]}  Qf2 {[%clk 0:00:39]} 31. Reg1 {[%clk 0:00:30]} 1-0


[Site "https://www.chess.com"]

[Event "Titled Tuesday Blitz August 24 2021"]
[White "Papasimakopoulos, Alexandros"]
[Black "Farahat, Ali"]
[WhiteFideId "4244125"]
[BlackFideId "10600507"]
[WhiteElo "2352"]
[BlackElo "2321"]
[Result "1-0"]
[Round "11"]
[TimeControl "180+1"]
[Date "2021.08.24"]
[WhiteClock "0:00:04"]
[BlackClock "0:00:15"]

1. d4 {[%clk 0:03:00]}  d5 {[%clk 0:02:59]} 2. c4 {[%clk 0:03:00]}  c6 {[%clk 0:02:59]} 3. cxd5 {[%clk 0:03:00]}  cxd5 {[%clk 0:03:00]} 4. Bf4 {[%clk 0:03:00]}  Nf6 {[%clk 0:02:59]} 5. Nc3 {[%clk 0:03:00]}  g6 {[%clk 0:02:59]} 6. e3 {[%clk 0:03:00]}  Bg7 {[%clk 0:03:00]} 7. h3 {[%clk 0:03:01]}  Nc6 {[%clk 0:03:00]} 8. Bd3 {[%clk 0:03:01]}  O-O {[%clk 0:03:00]} 9. Nf3 {[%clk 0:03:01]}  Nd7 {[%clk 0:03:00]} 10. Nxd5 {[%clk 0:02:44]}  e5 {[%clk 0:03:00]} 11. dxe5 {[%clk 0:02:36]}  Qa5+ {[%clk 0:03:00]} 12. Nc3 {[%clk 0:02:36]}  Ndxe5 {[%clk 0:03:00]} 13. Nxe5 {[%clk 0:02:27]}  Nxe5 {[%clk 0:03:01]} 14. Be2 {[%clk 0:02:27]}  Rd8 {[%clk 0:02:59]} 15. Qc1 {[%clk 0:01:59]}  Nd3+ {[%clk 0:02:47]} 16. Bxd3 {[%clk 0:01:59]}  Rxd3 {[%clk 0:02:48]} 17. O-O {[%clk 0:01:59]}  g5 {[%clk 0:02:32]} 18. Bg3 {[%clk 0:01:54]}  g4 {[%clk 0:02:32]} 19. h4 {[%clk 0:01:52]}  Be6 {[%clk 0:02:18]} 20. Rd1 {[%clk 0:01:50]}  Rad8 {[%clk 0:02:17]} 21. Qc2 {[%clk 0:01:48]}  Qa6 {[%clk 0:01:27]} 22. Bf4 {[%clk 0:01:25]}  h6 {[%clk 0:01:19]} 23. a3 {[%clk 0:01:06]}  Qc4 {[%clk 0:01:04]} 24. Rxd3 {[%clk 0:00:57]}  Rxd3 {[%clk 0:01:04]} 25. Rc1 {[%clk 0:00:55]}  Bf5 {[%clk 0:00:48]} 26. Qa4 {[%clk 0:00:28]}  Qxa4 {[%clk 0:00:36]} 27. Nxa4 {[%clk 0:00:27]}  b5 {[%clk 0:00:34]} 28. Nc5 {[%clk 0:00:17]}  Rd8 {[%clk 0:00:32]} 29. b4 {[%clk 0:00:12]}  Bb2 {[%clk 0:00:31]} 30. Re1 {[%clk 0:00:11]}  Bxa3 {[%clk 0:00:31]} 31. e4 {[%clk 0:00:12]}  Bc8 {[%clk 0:00:31]} 32. Rb1 {[%clk 0:00:11]}  Rd4 {[%clk 0:00:30]} 33. Rb3 {[%clk 0:00:06]}  Bxb4 {[%clk 0:00:29]} 34. Be3 {[%clk 0:00:06]}  Rd1+ {[%clk 0:00:28]} 35. Kh2 {[%clk 0:00:06]}  Bxc5 {[%clk 0:00:28]} 36. Bxc5 {[%clk 0:00:07]}  a6 {[%clk 0:00:28]} 37. Rc3 {[%clk 0:00:07]}  Be6 {[%clk 0:00:27]} 38. Be3 {[%clk 0:00:07]}  Rd7 {[%clk 0:00:27]} 39. Bxh6 {[%clk 0:00:06]}  Kh7 {[%clk 0:00:27]} 40. Be3 {[%clk 0:00:06]}  b4 {[%clk 0:00:27]} 41. Rc6 {[%clk 0:00:06]}  b3 {[%clk 0:00:27]} 42. Rb6 {[%clk 0:00:06]}  a5 {[%clk 0:00:28]} 43. Bc5 {[%clk 0:00:05]}  a4 {[%clk 0:00:28]} 44. h5 {[%clk 0:00:05]}  Rd5 {[%clk 0:00:27]} 45. exd5 {[%clk 0:00:05]}  Bxd5 {[%clk 0:00:19]} 46. Ba3 {[%clk 0:00:04]}  Be6 {[%clk 0:00:19]} 47. Kg3 {[%clk 0:00:04]}  Kh6 {[%clk 0:00:18]} 48. Kh4 {[%clk 0:00:04]}  Kg7 {[%clk 0:00:15]} 49. Bb2+ {[%clk 0:00:04]}  Kh7 {[%clk 0:00:15]} 50. Kg5 {[%clk 0:00:04]} 1-0


[Site "https://www.chess.com"]